Cogmind - Beta 16 @@@ ROGUE MODE // 2026.01.04 @ 01:30:47 Player: leto Result: Destroyed by D-53 Grenadier with Mini Grenade Launcher Performance ------------- Evolutions (0) 0 Regions Visited (2) 400 Robots Destroyed (25) 125 Value Destroyed (570) 570 Prototype IDs (0) 0 Alien Tech Used (0) 0 Bonus (60) 60 TOTAL SCORE: 1155 Bonus ------- Follower Combat Kills 60 Cogmind --------- Core Integrity 0/250 Matter 225/300 Energy 250/250 System Corruption 1% Temperature Cool (0) Movement Treading (320) Ox2 Location -10/Mines Parts ------- > --- POWER (1) -------- Ion Engine > --- PROPULSION (2) --- Light Treads > --- UTILITY (2) ------ Large Storage Unit Large Storage Unit > --- WEAPON (2) ------- Particle Gun > --- INVENTORY (15) --- Ion Engine Wheel Wheel Wheel Assault Rifle EMP Blaster EMP Blaster Grenade Launcher Mini Grenade Launcher Mini Grenade Launcher Mini Grenade Launcher Mini Grenade Launcher Datajack Mining Claw Peak State ------------ > --- POWER ------------ Ion Engine > --- PROPULSION ------- Light Treads Light Treads > --- UTILITY ---------- Large Storage Unit Large Storage Unit > --- WEAPON ----------- Particle Gun Assault Rifle > --- INVENTORY -------- Ion Engine Wheel Wheel Wheel Small Storage Unit Small Storage Unit Light Assault Rifle EMP Blaster EMP Blaster EMP Blaster EMP Blaster Grenade Launcher Grenade Launcher Mini Grenade Launcher Mini Grenade Launcher [Rating: 10] Favorites ----------- Power Ion Engine Engine Ion Engine Propulsion Light Treads Treads Light Treads Utility Large Storage Unit Storage Large Storage Unit Weapon Particle Gun Energy Gun Particle Gun Ballistic Gun Assault Rifle Launcher Grenade Launcher Special Melee Weapon Datajack Build | -11 -10 -10 ------- Run | Yrd Mat Min Slots Evolved . | . . . Power . | . . . Propulsion . | . . . Utility . | . . . Weapon . | . . . Parts Attached 18 | 7 9 2 Power 4 | 1 3 . Engine 4 | 1 3 . Core . | . . . Reactor . | . . . Propulsion 4 | 2 2 . Treads 4 | 2 2 . Leg . | . . . Wheel . | . . . Hover . | . . . Flight . | . . . Utility 4 | 2 2 . Device . | . . . Storage 4 | 2 2 . Processor . | . . . Hackware . | . . . Protection . | . . . Artifact . | . . . Weapon 6 | 2 2 2 Energy Gun 2 | 1 1 . Energy Cannon . | . . . Ballistic Gun 2 | 1 1 . Ballistic Cannon . | . . . Launcher 1 | . . 1 Special Weapon . | . . . Impact Weapon . | . . . Slashing Weapon . | . . . Piercing Weapon . | . . . Special Melee Weapon 1 | . . 1 Unidentified Prototypes . | . . . Parts Lost 4 | . 2 2 Power 1 | . 1 . Propulsion 1 | . . 1 Utility . | . . . Weapon 2 | . 1 1 Highest Loss Streak 2 | . 1 2 To Critical Strikes . | . . . Average Backups 11 | 1 11 14 Power . | . . 1 Propulsion 3 | 1 3 3 Utility 1 | . 1 . Weapon 6 | . 5 9 Tool/Special . | . . . Unused Backups 15 | . 3 12 Power 1 | . . 1 Propulsion 3 | . . 3 Utility . | . . . Weapon 10 | . 2 8 Tool/Special 1 | . 1 . Average Slot Usage (%) 99 | . 99 99 Engine 13 | . 13 14 Treads 27 | . 28 27 Storage 28 | . 28 28 Energy Gun 13 | . 13 14 Ballistic Gun 13 | . 14 13 Peak Build Rating 10 | 7 10 10 Average Rating 8 | 5 8 9 On Entrance 5 | . 7 10 Avg Prop Armor Cover (%) . | . . . Naked Turns . | . . . Heaviest Build 51 | 18 50 51 Greatest Support 40 | 40 40 40 Greatest Overweight (x) 3 | 3 2 2 Average Overweight (x) . | . . 1 Largest Inventory Capacity 15 | 8 15 15 Average Capacity 14 | 7 14 15 Most Carried 15 | 3 15 14 Average Carried 11 | 1 11 14 Final Capacity 15 | 8 15 15 Final Carried 14 | 2 14 14 Class Distribution -------------------- 62% | Mutant 37% | Scavenger-Mutant Dominant Class ---------------- Mutant | -10/Materials Scavenger-Mutant | -10/Mines Resources | -11 -10 -10 ----------- Run | Yrd Mat Min Matter Collected 511 | 119 358 34 Remotely . | . . . Salvage Created 852 | 62 769 21 Parts 65 | 3 62 . Haulers Intercepted 2 | . 2 . Recyclers Shooed 1 | . . 1 Parts Field Recycled . | . . . Retrieved Matter . | . . . Parts Self-Destructed . | . . . Prevented . | . . . Parts Restored . | . . . Kills | -11 -10 -10 ------- Run | Yrd Mat Min Combat Hostiles Destroyed 21 | . 15 6 Guns 15 | . 15 . AOE 6 | . . 6 Classes Destroyed 9 | 1 7 1 Builder 3 | . 3 . Tunneler 1 | . 1 . Hauler 2 | . 2 . Recycler 1 | 1 . . Operator 1 | . 1 . Watcher 2 | . 2 . Swarmer 3 | . 3 . Grunt 12 | . 12 . Assembled 6 | . . 6 Best Kill Streak 6 | 1 5 6 Combat Bots Only 6 | . 5 6 Max Kills in Single Turn 2 | 1 1 2 Gunslinging . | . . . Exploded 2 | . . 2 Melee . | . . . Uniques/NPCs Destroyed . | . . . Combat | -11 -10 -10 -------- Run | Yrd Mat Min Hostile Shots Fired 106 | . 85 21 Missed 24 | . 19 5 Hits 82 | . 66 16 Projectile 82 | . 66 16 AOE 3 | . . 3 Critical Strikes 2 | . 1 1 Part Disruptions 1 | . . 1 Damage Taken 1204 | . 837 367 Core 295 | . 160 135 Absorbed by Shields . | . . . Core Remaining (%) 100 | 100 . . Volleys Fired 86 | 4 72 10 Largest 2 | 2 2 2 Hottest 85 | 70 85 85 Shots Fired 161 | 8 140 13 Gun 154 | 8 140 6 Cannon . | . . . Launcher 7 | . . 7 Special . | . . . Kinetic 79 | 4 72 3 Thermal 75 | 4 68 3 Explosive 7 | . . 7 Electromagnetic . | . . . Robot Hit Streak 12 | 2 9 12 Robot Miss Streak 5 | 1 5 3 Penetration Max . | . . . Secondary Targets 3 | . 3 . Max Gunslinging Chain 1 | . 1 . Shots Hit Robots 97 | 5 82 10 Core Hits 64 | 2 44 18 Critical Kills . | . . . Critical Parts Destroyed . | . . . Critical Strikes 3 | . 3 . Burn 3 | . 3 . Melee Attacks 3 | . . 3 Impact . | . . . Slashing . | . . . Piercing . | . . . Sneak Attacks . | . . . Combat Hostiles . | . . . Follow-up Attacks . | . . . Damage Inflicted 1503 | 58 957 488 Guns 1038 | 58 926 54 Cannons . | . . . Explosions 432 | . . 432 Melee . | . . . Ramming 33 | . 31 2 Kinetic 364 | 19 331 14 Thermal 674 | 39 595 40 Explosive 432 | . . 432 Electromagnetic . | . . . Impact . | . . . Slashing . | . . . Piercing . | . . . Highest Corruption 1 | . 1 1 Average Corruption 1 | . 1 1 Corruption Purged . | . . . Corruption Blocked . | . . . Effects 25 | . 21 4 Message Errors 8 | . 7 1 Matter Fused 6 | . 5 1 Heat Flow Errors 3 | . 3 . Energy Discharges 1 | . 1 . Data Loss (minor) 1 | . . 1 Data Loss (major) 1 | . 1 . Misfires 2 | . 2 . Alerts 1 | . . 1 Weapon Failures 2 | . 2 . Overload Shots . | . . . Overflow Damage 20 | . . 20 Projectiles . | . . . Explosions 20 | . . 20 Melee . | . . . Knockbacks . | . . . Impact . | . . . Kinetic . | . . . Secondary . | . . . Self-Inflicted Damage 75 | . . 75 Shots 3 | . . 3 Rammed 6 | . 5 1 Targets Rammed 8 | . 7 1 Kicked . | . . . Crushed 2 | . 2 . Highest Temperature 421 | 80 421 112 Average Temperature 110 | 45 119 40 Received Heat Transfer 529 | . 363 166 Effects 3 | . 3 . Shutdowns 2 | . 2 . Short Circuit 1 | . 1 . Siege Activations . | . . . Martial Activations . | . . . Shielding Activations . | . . . Robots Disrupted . | . . . Combat Hostiles . | . . . Robots Corrupted . | . . . Combat Hostiles . | . . . Parts Fried . | . . . Impact Corruptions . | . . . Robots Melted . | . . . Combat Hostiles . | . . . Parts Melted 5 | . 5 . Heat Transferred 2146 | 111 1924 111 Parts Sabotaged . | . . . Parts Stolen . | . . . Parts Stripped . | . . . Power Chain Reactions . | . . . Alert | -11 -10 -10 ------- Run | Yrd Mat Min Maximum Alert Level . | . . . Low Security (%) 100 | 100 100 100 Level 1 . | . . . Level 2 . | . . . Level 3 . | . . . Level 4 . | . . . Level 5 . | . . . High Security . | . . . Max Security . | . . . Peak Influence 124 | 5 124 53 Initial 18 | . . 18 Average 28 | . 34 5 Influence Increases 534 | 5 459 70 Destroy 0b10 Robot/C 340 | . 300 40 Destroy 0b10 Robot/NC 50 | 5 45 . Destroy Leader 78 | . 68 10 Allied During Kill 3 | . . 3 Successful Hack 16 | . 16 . Destroy Structure 17 | . . 17 Lose Combat Pursuer 30 | . 30 . Influence Decreases 534 | 5 412 117 Entered New Map 29 | . . 29 Time Decay 486 | 5 402 79 Lost Part 19 | . 10 9 Squads Dispatched 1 | . 1 . Investigation . | . . . Extermination . | . . . Reinforcement 1 | . 1 . Assault . | . . . Garrison . | . . . Intercept . | . . . Searches Triggered . | . . . Construction Impeded . | . . . Haulers Reinforced . | . . . Active Scanning Responses . | . . . Cargo Convoy Interrupts . | . . . Stealth | -11 -10 -10 --------- Run | Yrd Mat Min Distress Signals 3 | . 3 . Communications Jammed . | . . . Distress Signals . | . . . Times Spotted 44 | . 28 16 Peak Tracking Total 11 | . 6 11 Tactical Retreats 3 | . 2 1 Traps | -11 -10 -10 ------- Run | Yrd Mat Min Traps Triggered 2 | . 2 . Indirectly . | . . . Trap Hack Attempts . | . . . Triggered . | . . . Disarmed . | . . . Reprogrammed . | . . . Reused . | . . . Traps Extracted . | . . . Installed . | . . . Triggered . | . . . Machines | -11 -10 -10 ---------- Run | Yrd Mat Min Machines Disabled . | . . . Max in Single Turn . | . . . Machines Repaired . | . . . Machines Dismantled . | . . . Machines Sabotaged . | . . . Overloaded Fab Kills . | . . . Hacking | -11 -10 -10 --------- Run | Yrd Mat Min Machines Accessed 7 | . 7 . Terminals 7 | . 7 . Fabricators . | . . . Repair Stations . | . . . Recycling Units . | . . . Scanalyzers . | . . . Garrison Access . | . . . Total Hacks 13 | . 13 . Successful 7 | . 7 . Failed 6 | . 6 . Catastrophic 1 | . 1 . Database Lockouts . | . . . Manual 13 | . 13 . Terminals 13 | . 13 . Fabricators . | . . . Repair Stations . | . . . Recycling Units . | . . . Scanalyzers . | . . . Garrison Access . | . . . Terminal Hacks 1 | . 1 . Unreport Threat 1 | . 1 . Fabricator Hacks . | . . . Repair Station Hacks . | . . . Recycling Unit Hacks . | . . . Scanalyzer . | . . . Garrison Access Hacks . | . . . Unauthorized Hacks 6 | . 6 . Terminals 6 | . 6 . Botnet 5 | . 5 . Operators 1 | . 1 . Fabricators . | . . . Repair Stations . | . . . Recycling Units . | . . . Scanalyzers . | . . . Garrison Access . | . . . Data Cores Recovered . | . . . Used . | . . . Hacking Detections 5 | . 5 . Full Trace Events 1 | . 1 . Feedback Events . | . . . Feedback Blocked . | . . . Robot Schematics Acquired . | . . . Robots Built . | . . . Authchips . | . . . Time . | . . . Total Robot Build Rating . | . . . Part Schematics Acquired . | . . . Parts Built . | . . . Authchips . | . . . Time . | . . . Total Part Build Rating . | . . . Part Studies Acquired . | . . . Parts Repaired . | . . . Time . | . . . Parts Recycled . | . . . Recycled Matter . | . . . Retrieved Matter . | . . . Retrieved Components . | . . . Parts Scanalyzed . | . . . Part Schematics Acquired . | . . . Parts Damaged . | . . . Bothacking | -11 -10 -10 ------------ Run | Yrd Mat Min Used RIF Installer . | . . . Robots Hacked . | . . . Non-combat . | . . . Combat . | . . . Robot Hacks Applied . | . . . Relay Couplers Released . | . . . Fabnet Peak Effective % . | . . . Robots Rewired . | . . . Allies Hacked . | . . . Hacks Repelled . | . . . Allies | -11 -10 -10 -------- Run | Yrd Mat Min Total Allies 1 | . . 1 Largest Group 1 | . . 1 Highest-Rated Group 31 | . . 31 Highest-Rated Ally 31 | . . 31 Total Orders . | . . . Ally Attacks 12 | . . 12 Total Damage 169 | . . 169 Kills 2 | . . 2 Allies Corrupted . | . . . Allies Melted . | . . . Intel | -11 -10 -10 ------- Run | Yrd Mat Min Active Infowar (turns) . | . . . Robot Analysis Total . | . . . Derelict Logs Recovered . | . . . Drone Launches . | . . . Drone Recoveries . | . . . Exploration | -11 -10 -10 ------------- Run | Yrd Mat Min Turns Passed 3029 | 65 2360 604 Spaces Moved 1177 | 28 916 233 Core 8 | 8 . . Treads 1169 | 20 916 233 Legs . | . . . Wheels . | . . . Hover . | . . . Flight . | . . . Fastest Speed 50 | 50 160 240 Average Speed 228 | 150 227 240 Slowest Speed 320 | 200 320 320 Overloaded Moves . | . . . Propulsion Burnouts . | . . . Robots Hopped . | . . . Potential Cave-ins . | . . . Cave-ins Triggered . | . . . Exploration Rate (%) 53 | 4 99 58 Regions Visited 2 Branch Regions 1 Pre-discovered Areas . | . . . Known Exits Taken . | . . . Unknown Exits Taken 2 | 1 1 . Scrap Searched 2 | . . 2 Spaces Dug . | . . . Terrain Destroyed 21 | . . 21 Melee . | . . . Projectile . | . . . AOE 21 | . . 21 Terrain Rammed . | . . . Walls Destroyed . | . . . Machines Disabled . | . . . Actions | -11 -10 -10 --------- Run | Yrd Mat Min Total 1361 | 41 1060 260 Wait 38 | . 28 10 Move 1175 | 27 915 233 Hop . | . . . Pick Up 21 | 3 18 . Fast Attach 8 | 6 2 . Attach 2 | 1 1 . Detach . | . . . Swap 9 | . 6 3 Drop 11 | . 11 . Fire 86 | 4 72 10 Melee 3 | . . 3 Ram . | . . . Kick . | . . . Crush 8 | . 7 1 Escape Stasis . | . . . Rewire . | . . . Trap . | . . . Miscellaneous . | . . . Route ------- -11/Scrapyard -10/Materials (discovered 6 exits: [*Mat x3] / [*Min x2] / [*Sub]) -10/Mines History --------- Turn | Location | Event 11 | -11/Scrapyard | Discovered new exit (range 16) 66 | -11/Scrapyard | Entered Materials 314 | -10/Materials | Build established: Mutant 383 | -10/Materials | Discovered new exit (range 8) 448 | -10/Materials | Discovered new exit (range 7) 577 | -10/Materials | Discovered new exit (range 9) 1015 | -10/Materials | Discovered new exit (range 4) 1135 | -10/Materials | Discovered new exit (range 11) 1154 | -10/Materials | Core integrity fell below 50% 1512 | -10/Materials | Discovered new exit (range 11) 2183 | -10/Materials | Build established: Scavenger-Mutant 2426 | -10/Materials | Entered Mines 2429 | -10/Mines | Received a Mining Laser from a helpful Derelict 3001 | -10/Mines | Assembled infested the area 3020 | -10/Mines | Core integrity fell below 20% 3030 | -10/Mines | Destroyed by D-53 Grenadier with Mini Grenade Launcher Last Messages --------------- K-01 Serf collects debris. 1R=#8V 7G2 L2#K9FAZVG9 System corrupted: IFF burst signal emitted. K-01 Serf collects debris. ALERT: Infestation in the mines, dispatching Demolisher response squad. Lgt. Treads destroyed. U-05 Engineer builds a Wall. as-67923 destroyed. as-68038 destroyed. as-26754 destroyed. as-72668 destroyed. as-09898 destroyed. Destroyed Asb. F-torch. as-65533 destroyed. as-03026 destroyed. The unstable cave ceiling collapses. as-65296 destroyed. as-44246 destroyed. Grenade Launcher destroyed. Map ----- +----------------------------------------------------+ | ???????????????????????????????????????????? | | ???????????????????????????????????????????? | | ???????????????????????????????????????????? | | ???????????????????????????????????????????? | | ???????????????????????????????????????????? | | ???????????????????????????????????????????? | | ???????????????????????????????????????????? | | ???????????????????????????????????????????? | | ?????????? #??????????????????????????????? | | ??????? #?????????????????????????????? | | ????? ?????????????????????????????? | | ???# ????????????????????????????? | | ??? ????????????????????????????? | | ??# #???????##??????????????????? | | ???# ????### ###### ????????????? | | ???# ##?? # ????????????? | | ???# ## ???????????? | | ????? % # d % ???????????? | | ?????? d %= ????????????? | | ???????? t ??????????????? | | ?????????? ????????????????? | | ???????????# ?????????????????? | | ???????????# #??????????????????? | | ???????????# #??????????????????? | | ????????????# #??????????????????? | | ????????????## @ #??????????????????? | | ?????????????## ##?????????????????? | | ??????????????## ##????????????????? | | ?????????????## #????????????????? | | ?????????????# #####???????????? | | ?????????????# ## #???????????? | | ?????????????# ##?# ????????????? | | ?????????????## #??? ???????????? | | ??????????????## #??? ???????????? | | ???????####????# #???? ## ???????????? | | ??????## ##???# #????##?# ##???????????? | | ??????# ##??# #???????# #???????????? # | | ??????# ##?# #???????# u############ #? | | ??????## ### #???????#!% #? | | ???????## ## #???????#] ##### ### ####? | | ????????# ### ###??#### #???# #?# ##### | | ???###### #### ##?# ##??# #?# | | ??## ## ##?# ### ## #??# #?####### | | ??# #### ## ## #??# #???????? | | ??# ## ## ## ##??# #???????? | | ??# """ ### ## ##?## #???????? | | ??## ### """ ##?# ## ### ##??????? | | ???##??##### """ #??# ### ##?????? | | ???????????## #??# #?# #???### | | ???????????## #??# #?## #### | +----------------------------------------------------+ Best States ------------- Heat Dissipation 25 Energy Generation 10 Energy Capacity 250 Matter Stores 300 Matter Capacity 300 Sight Range 16 Terrain Scan Density 10 Evasion (%) 40 Recoil Reduction 2 Item Schematics ----------------- None Robot Schematics ------------------ None Fabricated ------------ Nothing Repaired ---------- Nothing Studied --------- None Alien Tech Used ----------------- None Achievements -------------- None Challenges ------------ None Game ------ Seed PlatingSurgeKatana Manual? 0 Play Time 00:16:22 Cumulative 3.6 hours Start 2026.01.04 @ 01:14:08 End 2026.01.04 @ 01:30:47 Sessions 1 Manual Loads 0 Difficulty Rogue Special Mode None Game No. 7 Rogue 7 Adventurer 0 Explorer 0 Win Type - Total 0 Types 0/0/0/0/0/0/0/0/0/0 Lore% 2 Gallery% 8 Achievement% 9 Wizard Run 0 Options --------- Layout 1 ASCII 0 Keyboard 1 Movement Vi Keybinds 0 Fullscreen 1 Font 24/Smallcaps Map View 50x35 Zoom Use 0% Tactical HUD 0 Map Filters NONE Filters NONE Steam 1 RUN: c5ef4aaa-3950-46ae-9706-5347a2d2ea1c